Cogmind - Beta 17 @@@ ROGUE MODE // 2026.07.13 @ 11:38:54 Player: Goose Result: Destroyed by Y-45 Defender with Beam Rifle Performance ------------- Evolutions (2) 1000 Regions Visited (3) 600 Robots Destroyed (37) 185 Value Destroyed (1393) 1393 Prototype IDs (0) 0 Alien Tech Used (0) 0 Bonus (0) 0 TOTAL SCORE: 3178 Bonus ------- None Cogmind --------- Core Integrity 0/550 Matter 16/300 Energy 100/100 System Corruption 1% Temperature Cool (9) Movement Core (1400) Ox27 Location -8/Materials Parts ------- > --- POWER (1) -------- (None) > --- PROPULSION (3) --- (None) > --- UTILITY (5) ------ Improved Heat Sink Huge Storage Unit Machine Analyzer Core Shielding > --- WEAPON (2) ------- (None) > --- INVENTORY (25) --- Advanced Beam Cannon Flak Cannon Advanced Assault Cannon Peak State ------------ > --- POWER ------------ Light Nuclear Core > --- PROPULSION ------- Light Treads > --- UTILITY ---------- Huge Storage Unit High-capacity Matter Pod Weight Redist. System Core Shielding Hacking Suite > --- WEAPON ----------- Advanced Assault Cannon Advanced Assault Cannon > --- INVENTORY -------- Improved Ion Engine Improved Heat Sink Machine Analyzer Core Shielding Particle Gun Improved EM Pulse Cannon Rocket Launcher Rocket Launcher Rocket Launcher [Rating: 22] Favorites ----------- Power Improved Ion Engine Engine Improved Ion Engine Power Core Light Nuclear Core Propulsion Light Treads Treads Light Treads Wheel Wheel Flight Unit Flight Unit Utility Core Shielding Device Improved Heat Sink Storage Huge Storage Unit Processor Machine Analyzer Hackware Hacking Suite Protection Core Shielding Weapon Rocket Launcher Energy Gun EM Shotgun Energy Cannon Improved EM Pulse Cannon Ballistic Gun Light Assault Rifle Ballistic Cannon Advanced Assault Cannon Launcher Rocket Launcher Build | -11 -10 -9 -8 ------- Run | Yrd Mat Mat Mat Slots Evolved 4 | . . 2 2 Power . | . . . . Propulsion 1 | . . . 1 Utility 3 | . . 2 1 Weapon . | . . . . Parts Attached 41 | 6 7 7 21 Power 7 | 1 1 . 5 Engine 5 | 1 1 . 3 Core 2 | . . . 2 Reactor . | . . . . Propulsion 6 | 2 . 1 3 Treads 4 | 2 . 1 1 Leg . | . . . . Wheel 1 | . . . 1 Hover . | . . . . Flight 1 | . . . 1 Utility 12 | 1 2 3 6 Device 4 | . 1 . 3 Storage 4 | 1 . 2 1 Processor 1 | . . . 1 Hackware 1 | . . . 1 Protection 2 | . 1 1 . Artifact . | . . . . Weapon 16 | 2 4 3 7 Energy Gun 5 | . 4 . 1 Energy Cannon 1 | . . . 1 Ballistic Gun 3 | 2 . . 1 Ballistic Cannon 3 | . . . 3 Launcher 4 | . . 3 1 Special Weapon . | . . . . Impact Weapon . | . . . . Slashing Weapon . | . . . . Piercing Weapon . | . . . . Special Melee Weapon . | . . . . Unidentified Prototypes . | . . . . Corrupted Parts 1 | . . . 1 System Corruption 1 | . . . 1 Parts Lost 21 | . . . 21 Power 4 | . . . 4 Propulsion 3 | . . . 3 Utility 5 | . . . 5 Weapon 9 | . . . 9 Highest Loss Streak 12 | . . . 12 To Critical Strikes . | . . . . Average Backups 4 | 1 6 7 4 Power . | . . 1 . Propulsion . | . 1 . . Utility 1 | . 1 1 1 Weapon 3 | . 2 5 3 Tool/Special . | . . . . Unused Backups 8 | . 2 2 4 Power 1 | . . . 1 Propulsion 2 | . 2 . . Utility . | . . . . Weapon 5 | . . 2 3 Tool/Special . | . . . . Average Slot Usage (%) 77 | . 94 85 73 Engine 8 | . 14 10 7 Core 1 | . . . 1 Treads 8 | . 28 19 3 Device 13 | . 2 11 15 Storage 12 | . 14 11 12 Processor 4 | . . . 5 Protection 8 | . 6 11 8 Energy Gun 4 | . 16 7 1 Ballistic Gun 1 | . 11 . . Ballistic Cannon 6 | . . . 7 Launcher 6 | . . 13 6 Peak Build Rating 22 | 6 11 14 22 Average Rating 16 | 4 8 12 18 On Entrance 7 | . 6 11 14 Avg Prop Armor Cover (%) . | . . . . Naked Turns . | . . . . Heaviest Build 105 | 10 15 36 105 Greatest Support 46 | 40 40 40 46 Greatest Overweight (x) 33 | 1 . . 33 Average Overweight (x) 4 | . . . 10 Largest Inventory Capacity 25 | 8 8 15 25 Average Capacity 20 | 7 8 8 24 Most Carried 10 | 4 8 8 10 Average Carried 4 | 1 6 7 4 Final Capacity 25 | 8 8 15 25 Final Carried 8 | 4 8 8 3 Class Distribution -------------------- 100% | Mutant Dominant Class ---------------- Mutant | -10/Materials Mutant | -9/Materials Mutant | -8/Materials Resources | -11 -10 -9 -8 ----------- Run | Yrd Mat Mat Mat Matter Collected 969 | 196 148 160 465 Remotely . | . . . . Salvage Created 1049 | . 192 214 643 Parts 56 | . 9 13 34 Haulers Intercepted . | . . . . Recyclers Shooed 2 | . . 1 1 Parts Field Recycled . | . . . . Retrieved Matter . | . . . . Parts Self-Destructed . | . . . . Prevented . | . . . . Parts Restored . | . . . . Kills | -11 -10 -9 -8 ------- Run | Yrd Mat Mat Mat Combat Hostiles Destroyed 31 | . 5 8 18 Melee 1 | . . . 1 Guns 10 | . 4 1 5 Cannons 6 | . . . 6 AOE 13 | . . 7 6 Classes Destroyed 8 | . 2 3 3 Worker 1 | . . . 1 Builder 3 | . . . 3 Watcher 2 | . . 1 1 Swarmer 5 | . 2 . 3 Grunt 17 | . 3 5 9 Duelist 2 | . . 1 1 Sentry 6 | . . 2 4 Hunter 1 | . . . 1 Best Kill Streak 7 | . 3 7 6 Combat Bots Only 6 | . 3 6 6 Max Kills in Single Turn 2 | . 2 2 2 Gunslinging . | . . . . Exploded 2 | . . 2 1 Melee 1 | . . . 1 Uniques/NPCs Destroyed . | . . . . Combat | -11 -10 -9 -8 -------- Run | Yrd Mat Mat Mat Hostile Shots Fired 253 | . 26 16 211 Missed 69 | . 10 8 51 Hits 184 | . 16 8 160 Melee 3 | . . 2 1 Projectile 181 | . 16 6 159 Critical Strikes 5 | . 2 1 2 Actively Blocked 1 | . . . 1 Damage Taken 2922 | . 213 138 2571 Core 573 | . 14 . 559 Absorbed by Shields . | . . . . Redirected to Shielding 76 | . . . 76 Core Remaining (%) 98 | 100 94 100 . Volleys Fired 71 | . 17 13 41 Largest 2 | . 2 2 2 Hottest 115 | . 115 90 114 Shots Fired 134 | . 34 23 77 Gun 58 | . 34 6 18 Cannon 41 | . . . 41 Launcher 35 | . . 17 18 Special . | . . . . Kinetic 53 | . 14 . 39 Thermal 17 | . 12 . 5 Explosive 35 | . . 17 18 Electromagnetic 29 | . 8 6 15 Robot Hit Streak 11 | . 11 10 10 Robot Miss Streak 9 | . 2 3 9 Penetration Max . | . . . . Secondary Targets . | . . . . Shots Hit Robots 89 | . 27 13 49 Core Hits 64 | . 10 21 33 Critical Kills . | . . . . Critical Parts Destroyed . | . . . . Critical Strikes 6 | . 2 . 4 Burn 2 | . 2 . . Blast 4 | . . . 4 Melee Attacks . | . . . . Impact . | . . . . Slashing . | . . . . Piercing . | . . . . Sneak Attacks . | . . . . Combat Hostiles . | . . . . Follow-up Attacks . | . . . . Damage Inflicted 2803 | . 349 721 1733 Guns 616 | . 349 64 203 Cannons 631 | . . . 631 Explosions 1552 | . . 657 895 Melee . | . . . . Ramming 4 | . . . 4 Kinetic 669 | . 103 . 566 Thermal 274 | . 136 57 81 Explosive 1495 | . . 600 895 Electromagnetic 361 | . 110 64 187 Impact . | . . . . Slashing . | . . . . Piercing . | . . . . Highest Corruption 1 | . . . 1 Average Corruption 1 | . . . 1 Corruption Purged . | . . . . Corruption Blocked . | . . . . Effects 9 | . . . 9 Message Errors 2 | . . . 2 Matter Fused 2 | . . . 2 Heat Flow Errors 1 | . . . 1 Data Loss (minor) 1 | . . . 1 Misfires 1 | . . . 1 Alerts 2 | . . . 2 Overload Shots . | . . . . Overflow Damage 164 | . . . 164 Projectiles . | . . . . Explosions 164 | . . . 164 Melee . | . . . . Knockbacks 8 | . . . 8 Impact 1 | . . . 1 Kinetic 7 | . . . 7 Secondary . | . . . . Self-Inflicted Damage 403 | . . . 403 Shots 10 | . . . 10 Rammed 2 | . . . 2 Targets Rammed 3 | . . . 3 Kicked . | . . . . Crushed 1 | . . . 1 Highest Temperature 282 | . 282 . 191 Average Temperature 52 | . 83 . 34 Received Heat Transfer 990 | . 135 18 837 Effects 2 | . 2 . . Interference 2 | . 2 . . Siege Activations . | . . . . Martial Activations . | . . . . Shielding Activations . | . . . . Robots Disrupted . | . . . . Combat Hostiles . | . . . . Robots Corrupted . | . . . . Combat Hostiles . | . . . . Parts Fried . | . . . . Impact Corruptions . | . . . . Robots Melted 1 | . 1 . . Combat Hostiles 1 | . 1 . . Parts Melted 4 | . 4 . . Heat Transferred 753 | . 518 50 185 Parts Sabotaged . | . . . . Parts Stolen . | . . . . Parts Stripped . | . . . . Power Chain Reactions 1 | . . 1 . Alert | -11 -10 -9 -8 ------- Run | Yrd Mat Mat Mat Maximum Alert Level 1 | . . 1 . Low Security (%) 94 | 100 100 48 100 Level 1 5 | . . 51 . Level 2 . | . . . . Level 3 . | . . . . Level 4 . | . . . . Level 5 . | . . . . High Security . | . . . . Max Security . | . . . . Peak Influence 306 | . 65 306 153 Initial 107 | . . 8 107 Average 58 | . 19 144 54 Influence Increases 1286 | . 145 366 775 Destroy 0b10 Robot/C 620 | . 100 160 360 Destroy 0b10 Robot/NC 30 | . . 5 25 Destroy Leader 184 | . 30 52 102 Successful Hack 4 | . . . 4 Disable Machine 195 | . . 75 120 Destroy Structure 223 | . . 74 149 Lose Combat Pursuer 30 | . 15 . 15 Influence Decreases 1197 | . 125 130 942 Entered New Map 161 | . . 12 149 Time Decay 826 | . 125 118 583 Lost Part 210 | . . . 210 Squads Dispatched 4 | . . 2 2 Investigation . | . . . . Extermination . | . . . . Reinforcement 4 | . . 2 2 Assault . | . . . . Garrison . | . . . . Intercept . | . . . . Searches Triggered . | . . . . Construction Impeded 1 | . . . 1 Haulers Reinforced . | . . . . Active Scanning Responses . | . . . . Cargo Convoy Interrupts . | . . . . Stealth | -11 -10 -9 -8 --------- Run | Yrd Mat Mat Mat Distress Signals 5 | . . 1 4 Communications Jammed . | . . . . Distress Signals . | . . . . Times Spotted 56 | . 8 11 37 Peak Tracking Total 5 | . 2 4 5 Tactical Retreats 2 | . 1 . 1 Traps | -11 -10 -9 -8 ------- Run | Yrd Mat Mat Mat Traps Triggered 1 | . . 1 . Indirectly . | . . . . Trap Hack Attempts . | . . . . Triggered . | . . . . Disarmed . | . . . . Reprogrammed . | . . . . Reused . | . . . . Traps Extracted . | . . . . Installed . | . . . . Triggered . | . . . . Machines | -11 -10 -9 -8 ---------- Run | Yrd Mat Mat Mat Machines Disabled 13 | . . 5 8 Max in Single Turn 2 | . . 2 2 Machines Repaired . | . . . . Machines Dismantled . | . . . . Machines Sabotaged . | . . . . Overloaded Fab Kills . | . . . . Hacking | -11 -10 -9 -8 --------- Run | Yrd Mat Mat Mat Machines Accessed 2 | . 1 . 1 Terminals 2 | . 1 . 1 Fabricators . | . . . . Repair Stations . | . . . . Recycling Units . | . . . . Scanalyzers . | . . . . Garrison Access . | . . . . Total Hacks 5 | . 2 . 3 Successful 2 | . 1 . 1 Failed 3 | . 1 . 2 Catastrophic . | . . . . Database Lockouts . | . . . . Manual . | . . . . Terminals 5 | . 2 . 3 Fabricators . | . . . . Repair Stations . | . . . . Recycling Units . | . . . . Scanalyzers . | . . . . Garrison Access . | . . . . Terminal Hacks 2 | . 1 . 1 Record 1 | . 1 . . Emergency Access Points 1 | . . . 1 Fabricator Hacks . | . . . . Repair Station Hacks . | . . . . Recycling Unit Hacks . | . . . . Scanalyzer . | . . . . Garrison Access Hacks . | . . . . Unauthorized Hacks . | . . . . Terminals . | . . . . Fabricators . | . . . . Repair Stations . | . . . . Recycling Units . | . . . . Scanalyzers . | . . . . Garrison Access . | . . . . Data Cores Recovered . | . . . . Used . | . . . . Hacking Detections 2 | . 1 . 1 Full Trace Events . | . . . . Feedback Events . | . . . . Feedback Blocked . | . . . . Robot Schematics Acquired . | . . . . Robots Built . | . . . . Authchips . | . . . . Time . | . . . . Total Robot Build Rating . | . . . . Part Schematics Acquired . | . . . . Parts Built . | . . . . Authchips . | . . . . Time . | . . . . Total Part Build Rating . | . . . . Part Studies Acquired . | . . . . Parts Repaired . | . . . . Time . | . . . . Parts Recycled . | . . . . Recycled Matter . | . . . . Retrieved Matter . | . . . . Retrieved Components . | . . . . Parts Scanalyzed . | . . . . Part Schematics Acquired . | . . . . Parts Damaged . | . . . . Bothacking | -11 -10 -9 -8 ------------ Run | Yrd Mat Mat Mat Used RIF Installer . | . . . . Robots Hacked . | . . . . Non-combat . | . . . . Combat . | . . . . Robot Hacks Applied . | . . . . Relay Couplers Released . | . . . . Fabnet Peak Effective % . | . . . . Robots Rewired . | . . . . Allies Hacked . | . . . . Hacks Repelled . | . . . . Allies | -11 -10 -9 -8 -------- Run | Yrd Mat Mat Mat Total Allies . | . . . . Largest Group . | . . . . Highest-Rated Group . | . . . . Highest-Rated Ally . | . . . . Total Orders . | . . . . Ally Attacks . | . . . . Total Damage . | . . . . Kills . | . . . . Allies Corrupted . | . . . . Allies Melted . | . . . . Intel | -11 -10 -9 -8 ------- Run | Yrd Mat Mat Mat Active Infowar (turns) 2167 | . . . 2167 Seismic 678 | . . . 678 Machine Analysis 1489 | . . . 1489 Robot Analysis Total . | . . . . Derelict Logs Recovered . | . . . . Drone Launches . | . . . . Drone Recoveries . | . . . . Exploration | -11 -10 -9 -8 ------------- Run | Yrd Mat Mat Mat Turns Passed 3280 | 85 370 352 2473 Spaces Moved 797 | 49 186 183 379 Core 103 | 6 . . 97 Treads 629 | 43 186 183 217 Legs . | . . . . Wheels 56 | . . . 56 Hover . | . . . . Flight 9 | . . . 9 Fastest Speed 50 | 50 160 160 160 Average Speed 370 | 148 160 160 604 Slowest Speed 1700 | 160 160 160 1700 Overloaded Moves . | . . . . Propulsion Burnouts . | . . . . Robots Hopped . | . . . . Potential Cave-ins . | . . . . Cave-ins Triggered . | . . . . Exploration Rate (%) 19 | 3 23 23 30 Regions Visited 3 Branch Regions . Pre-discovered Areas . | . . . . Known Exits Taken . | . . . . Unknown Exits Taken 3 | 1 1 1 . Scrap Searched . | . . . . Spaces Dug . | . . . . Terrain Destroyed 266 | . . 77 189 Melee . | . . . . Projectile 9 | . . . 9 AOE 257 | . . 77 180 Terrain Rammed . | . . . . Walls Destroyed . | . . . . Machines Disabled . | . . . . Actions | -11 -10 -9 -8 --------- Run | Yrd Mat Mat Mat Total 980 | 58 228 218 476 Wait 9 | . 6 . 3 Move 794 | 48 185 182 379 Hop . | . . . . Pick Up 18 | 4 6 3 5 Fast Attach 32 | 6 3 6 17 Attach 18 | . 2 2 14 Detach 11 | . 3 3 5 Swap 6 | . 2 4 . Drop 18 | . 4 5 9 Fire 71 | . 17 13 41 Melee . | . . . . Ram 1 | . . . 1 Kick . | . . . . Crush 2 | . . . 2 Escape Stasis . | . . . . Rewire . | . . . . Trap . | . . . . Miscellaneous . | . . . . Route ------- -11/Scrapyard -10/Materials -9/Materials -8/Materials History --------- Turn | Location | Event 10 | -11/Scrapyard | Discovered new exit (range 16) 86 | -11/Scrapyard | Entered Materials 265 | -10/Materials | Discovered new exit (range 16) 304 | -10/Materials | Build established: Mutant 456 | -10/Materials | Entered another Materials area 456 | -9/Materials | Evolved 2 slots: Utility x2 679 | -9/Materials | Discovered new exit (range 15) 808 | -9/Materials | Entered another Materials area 808 | -8/Materials | Evolved 2 slots: Propulsion x1, Utility x1 1782 | -8/Materials | Core integrity fell below 50% 1791 | -8/Materials | Core integrity fell below 20% 1821 | -8/Materials | Lost 12 parts (2p1n4u5w) 3281 | -8/Materials | Destroyed by Y-45 Defender with Beam Rifle Last Messages --------------- K-01 Serf collects debris. G-47 Trooper Aluminum Leg blasted off. G-47 Trooper knocked back. Matter Filter destroyed. G-47 Trooper destroyed. K-01 Serf collects debris. The unstable cave ceiling collapses. K-01 Serf cleans the Terminal. The unstable cave ceiling collapses. Dropped Wheel. The unstable cave ceiling collapses. K-01 Serf collects debris. Imp. Ion Engine destroyed. Rocket Launcher destroyed. K-01 Serf collects debris. The unstable cave ceiling collapses. K-01 Serf collects debris. The unstable cave ceiling collapses. Adv. Assault Cannon destroyed. K-01 Serf collects debris. Map ----- +----------------------------------------------------+ | ?????????????????????????????????????????????????? | | ?????????????????????????????"""?????????????????? | | ????????????????????????????"""""????????????????? | | ????????????????????????????"""""????????????????? | | ????????????????????????????"""""????????????????? | | ?????????????????????????????"""???????????????"T" | | ???????????????????????????????????????????????""" | | ?????????????????????????????????????????????????? | | ?????????????????????????????????????????????????? | | ?????????????????????????????????????????????????? | | ?????????????????????????????????????????????????? | | ???????????????????????????? ????????????????????? | | ???????????????????????????/#????????????????????? | | ???????????????????????????g ????????????????????? | | ?????????????????????????""s"""??????????????????? | | ???????????????????""????"Ts"""????"""???????????? | | ???????????????????"Y????""s"""????"""???????????? | | ???????????????????""???# ?????"""???????????? | | ????????????????????????# """??????????????????? | | ??????????????????????### ""????"""???????????? | | ??????????????????????# """????"""???????????? | | ??????????????????????# = ???????"""???????????? | | ??????????????????????# ##????????????????????? | | ??????????????????????# k ##???????????????????? | | ??????????????????????# # #???????????????????? | | ??????????????????????# @ #???????????????????? | | ?????????????????????## #Y # #= #????????????????? | | ?????????????????????# = # #######??????????? | | ?????????????? =# %* #??????????? | | ?????????????## % #??????????? | | ??????????????# """ """ #??????????? | | ??????????????# """ """ #??????????? | | ????????????????""" """ # "" #??????????? | | ????????????????? [% """#??????????? | | ????????????????? ? # # S"#??????????? | | ????????????????"""T""" # # #??????????? | | ???????????????????###### ###########??????????? | | ????????????????????????# #? #???????????? | | ????????????????????????# # """ +???????????? | | ????????????????????????# # R" #???????????? | | ????????????????????????# + """ #???????????? | | ????????????????????????# # #???????????? | | ????????????????????????# # """ #???????????? | | ????????????????????????# #?""" ! #???????????? | | ?????????##?##??????????# #?""" #???????????? | | ???????## ## ???????????# #?? #???????????? | | ?????### ##??????????# #??###??#????????????? | | ###### # #??????????# #????????????????????? | | # ###?????????# #????????????????????? | | # # #?????????# #????????????????????? | +----------------------------------------------------+ Best States ------------- Heat Dissipation 45 Energy Generation 14 Energy Capacity 265 Matter Stores 300 Matter Capacity 500 Sight Range 16 Terrain Scan Density 10 Additional Mass Support 6 Core Shielding 20 Evasion (%) 40 Recoil Reduction 2 Matter Filtering 30 Offensive Hacking 10 Item Schematics ----------------- None Robot Schematics ------------------ None Fabricated ------------ Nothing Repaired ---------- Nothing Studied --------- None Alien Tech Used ----------------- None Achievements -------------- Hydra Maybe Next Time I'll Detach My Launcher Oops Challenges ------------ None Game ------ Seed FieldSystemCalibrator Manual? 0 Play Time 00:25:19 Cumulative 3.0 hours Start 2026.07.13 @ 11:14:27 End 2026.07.13 @ 11:38:54 Sessions 1 Manual Loads 0 Difficulty Rogue Special Mode None Game No. 5 Rogue 4 Adventurer 1 Explorer 0 Win Type - Total 0 Types 0/0/0/0/0/0/0/0/0/0 Lore% 2 Gallery% 8 Achievement% 9 Wizard Run 0 Options --------- Layout 1 ASCII 0 Keyboard 0 Movement Mouse Keybinds 0 Fullscreen 1 Font 32/Terminus Map View 50x35 Zoom Use 0% Tactical HUD 0 Map Filters NONE Filters NONE Steam 1 RUN: b2d60643-762b-4079-8aae-7c08315aff7b